fUSD/lending_fUSD_20260510
["ID","MTS","AMOUNT","RATE_DAILY","PERIOD"]
[421975131,1778395986000,-961.93151573,0.0001166,2]
[421975130,1778395986000,-961.93151573,0.0001166,2]
[421975129,1778395986000,-961.93151573,0.0001166,2]
[421975132,1778395987000,-961.93151573,0.0001166,2]
[421975133,1778395987000,-961.93151573,0.0001166,2]
[421975134,1778395987000,-54.50909889,0.0001166,2]
[421975136,1778395987000,-500.0,0.0001175,2]
[421975135,1778395987000,-373.15470005,0.0001166,2]
[421975137,1778395987000,-34.26771679,0.0001175,2]
[421975138,1778396004000,-300.0,0.00011499,2]
[421975139,1778396045000,2266.82676128,0.0002739,120]
[421975140,1778396101000,-10000.01,0.00011572,2]
[421975142,1778396253000,-10000.01,0.00011572,2]
[421975144,1778396254000,-10000.01,0.00011572,2]
[421975143,1778396254000,-10000.01,0.00011572,2]
[421975147,1778396255000,-10000.01,0.00011572,2]
[421975146,1778396255000,-10000.01,0.00011572,2]
[421975145,1778396255000,-10000.01,0.00011572,2]
[421975149,1778396256000,-10000.01,0.00011572,2]
[421975150,1778396256000,-10000.01,0.00011572,2]
[421975151,1778396256000,-10000.01,0.00011572,2]
[421975148,1778396256000,1007.12205463,0.000115,2]
[421975153,1778396256000,-10000.01,0.00011572,2]
[421975154,1778396256000,-10000.01,0.00011572,2]
[421975152,1778396256000,-10000.01,0.00011572,2]
[421975155,1778396256000,300.0,0.00011571,2]
[421975157,1778396257000,-10000.01,0.00011572,2]
[421975158,1778396257000,200.0,0.00011118,2]
[421975156,1778396257000,-10000.01,0.00011572,2]
[421975159,1778396268000,150.0,0.0001126,2]
[421975162,1778396280000,500.0,0.00011571,2]
[421975163,1778396280000,500.0,0.00011571,2]
[421975161,1778396280000,500.0,0.00011571,2]
[421975160,1778396280000,500.0,0.00011571,2]
[421975166,1778396281000,488.36185574,0.00011571,2]
[421975165,1778396281000,518.09403193,0.00011571,2]
[421975164,1778396281000,336.4320577,0.00011571,2]
[421975167,1778396294000,-500.0,0.00011571,2]
[421975168,1778396325000,188.47409995,0.0001,30]
[421975169,1778396355000,-300.0,0.0001157,2]
[421975170,1778396371000,2348.7484,0.00011472,2]
[421975171,1778396381000,166.7,0.00011543,2]
[421975173,1778396394000,171.0,0.00012,3]
[421975174,1778396409000,-500.0,0.00011571,2]
[421975175,1778396485000,184.5516,0.0001157,2]
[421975185,1778396583000,-15.4484,0.0001157,2]
[421975184,1778396583000,-157.07,0.00011233,2]
[421975183,1778396583000,-500.0,0.0001157,2]
[421975182,1778396583000,-500.0,0.0001157,2]
[421975186,1778396584000,-327.4816,0.00011571,2]
[421975188,1778396584000,-500.0,0.00011344,2]
[421975187,1778396584000,-500.0,0.00011344,2]
[421975190,1778396585000,-500.0,0.00011344,2]
[421975189,1778396585000,-500.0,0.00011344,2]
[421975195,1778396586000,-500.0,0.00010921,2]
[421975196,1778396586000,-515.4484,0.00011344,2]
[421975193,1778396586000,-42.1116,0.00010973,2]
[421975194,1778396586000,-973.3368,0.00011344,2]
[421975192,1778396586000,-1015.4484,0.00010973,2]
[421975191,1778396586000,-1015.4484,0.00011344,2]
[421975197,1778396587000,-300.0,0.00011343,2]
[421975198,1778396587000,-715.4484,0.00011344,2]
[421975201,1778396587000,-1015.4484,0.00011344,2]
[421975200,1778396587000,-187.1304,0.00011344,2]
[421975199,1778396587000,-828.318,0.00011344,2]
[421975203,1778396588000,-1015.4484,0.00011344,2]
[421975202,1778396588000,-1015.4484,0.00011344,2]
[421975215,1778396592000,-940670.63951508,0.00041691,120]
[421975214,1778396592000,-639.76,0.00041691,30]
[421975217,1778396592000,-1522.30079432,0.00041691,120]
[421975212,1778396592000,-577.8,0.00041691,30]
[421975213,1778396592000,-2764.95738461,0.00041691,60]
[421975211,1778396592000,-540.8562361,0.00041691,120]
[421975210,1778396592000,-500.0,0.00041691,120]
[421975207,1778396592000,-500.0,0.00041691,120]
[421975206,1778396592000,-200.57253051,0.00041691,120]
[421975205,1778396592000,-324423.34930268,0.00041691,30]
[421975208,1778396592000,-500.0,0.00041691,120]
[421975204,1778396592000,-7442858.30075141,0.00041691,60]
[421975209,1778396592000,-500.0,0.00041691,120]
[421975219,1778396592000,-1522.30079432,0.00041691,120]
[421975223,1778396592000,-1522.30079431,0.00041691,120]
[421975218,1778396592000,-1522.30079432,0.00041691,120]
[421975216,1778396592000,-1522.30079432,0.00041691,120]
[421975233,1778396592000,-2207.95,0.00041691,30]
[421975230,1778396592000,-3195.21397158,0.00041691,120]
[421975231,1778396592000,-2207.95,0.00041691,30]
[421975229,1778396592000,-1522.30079431,0.00041691,120]
[421975228,1778396592000,-1522.30079431,0.00041691,120]
[421975232,1778396592000,-2207.95,0.00041691,30]
[421975224,1778396592000,-1522.30079431,0.00041691,120]
[421975225,1778396592000,-1522.30079431,0.00041691,120]
[421975226,1778396592000,-1522.30079431,0.00041691,120]
[421975220,1778396592000,-1522.30079432,0.00041691,120]
[421975222,1778396592000,-1522.30079431,0.00041691,120]
[421975221,1778396592000,-1522.30079432,0.00041691,120]
[421975227,1778396592000,-1522.30079431,0.00041691,120]
[421975252,1778396593000,-2207.95,0.00041691,30]
[421975247,1778396593000,-2207.95,0.00041691,30]
[421975249,1778396593000,-2207.95,0.00041691,30]
[421975248,1778396593000,-2207.95,0.00041691,30]
[421975246,1778396593000,-2207.95,0.00041691,30]
[421975245,1778396593000,-2207.95,0.00041691,30]
[421975244,1778396593000,-2207.95,0.00041691,30]
[421975242,1778396593000,-2207.95,0.00041691,30]
[421975240,1778396593000,-2207.95,0.00041691,30]
[421975239,1778396593000,-2207.95,0.00041691,30]
[421975241,1778396593000,-2207.95,0.00041691,30]
[421975238,1778396593000,-2207.95,0.00041691,30]
[421975237,1778396593000,-2207.95,0.00041691,30]
[421975235,1778396593000,-2207.95,0.00041691,30]
[421975234,1778396593000,-2207.95,0.00041691,30]
[421975251,1778396593000,-2207.95,0.00041691,30]
[421975243,1778396593000,-2207.95,0.00041691,30]
[421975236,1778396593000,-2207.95,0.00041691,30]
[421975250,1778396593000,-2207.95,0.00041691,30]
[421975253,1778396593000,-2207.95,0.00041691,30]
[421975271,1778396593000,-485.067318,0.00041691,120]
[421975269,1778396593000,-485.067318,0.00041691,120]
[421975270,1778396593000,-485.067318,0.00041691,120]
[421975267,1778396593000,-485.067318,0.00041691,120]
[421975268,1778396593000,-485.067318,0.00041691,120]
[421975266,1778396593000,-485.067318,0.00041691,120]
[421975265,1778396593000,-485.067318,0.00041691,120]
[421975264,1778396593000,-485.067318,0.00041691,120]
[421975254,1778396593000,-2208.04353482,0.00041691,30]
[421975263,1778396593000,-485.067318,0.00041691,120]
[421975261,1778396593000,-485.067318,0.00041691,120]
[421975257,1778396593000,-485.067318,0.00041691,120]
[421975259,1778396593000,-485.067318,0.00041691,120]
[421975258,1778396593000,-485.067318,0.00041691,120]
[421975260,1778396593000,-485.067318,0.00041691,120]
[421975256,1778396593000,-485.067318,0.00041691,120]
[421975255,1778396593000,-485.067318,0.00041691,120]
[421975262,1778396593000,-485.067318,0.00041691,120]
[421975281,1778396594000,-485.067318,0.00041691,120]
[421975284,1778396594000,-485.067318,0.00041691,120]
[421975288,1778396594000,-485.067318,0.00041691,120]
[421975285,1778396594000,-485.067318,0.00041691,120]
[421975287,1778396594000,-485.067318,0.00041691,120]
[421975283,1778396594000,-485.067318,0.00041691,120]
[421975286,1778396594000,-485.067318,0.00041691,120]
[421975282,1778396594000,-485.067318,0.00041691,120]
[421975275,1778396594000,-485.067318,0.00041691,120]
[421975279,1778396594000,-485.067318,0.00041691,120]
[421975278,1778396594000,-485.067318,0.00041691,120]
[421975277,1778396594000,-485.067318,0.00041691,120]
[421975274,1778396594000,-485.067318,0.00041691,120]
[421975276,1778396594000,-485.067318,0.00041691,120]
[421975273,1778396594000,-485.067318,0.00041691,120]
[421975272,1778396594000,-485.067318,0.00041691,120]
[421975290,1778396594000,-485.067318,0.00041691,120]
[421975280,1778396594000,-485.067318,0.00041691,120]
[421975289,1778396594000,-485.067318,0.00041691,120]
[421975292,1778396594000,-485.067318,0.00041691,120]
[421975309,1778396594000,-485.067318,0.00041691,120]
[421975311,1778396594000,-485.067318,0.00041691,120]
[421975310,1778396594000,-485.067318,0.00041691,120]
[421975291,1778396594000,-485.067318,0.00041691,120]
[421975305,1778396594000,-485.067318,0.00041691,120]
[421975306,1778396594000,-485.067318,0.00041691,120]
[421975307,1778396594000,-485.067318,0.00041691,120]
[421975303,1778396594000,-485.067318,0.00041691,120]
[421975302,1778396594000,-485.067318,0.00041691,120]
[421975301,1778396594000,-485.067318,0.00041691,120]
[421975308,1778396594000,-485.067318,0.00041691,120]
[421975300,1778396594000,-485.067318,0.00041691,120]
[421975299,1778396594000,-485.067318,0.00041691,120]
[421975298,1778396594000,-485.067318,0.00041691,120]
[421975297,1778396594000,-485.067318,0.00041691,120]
[421975296,1778396594000,-485.067318,0.00041691,120]
[421975295,1778396594000,-485.067318,0.00041691,120]
[421975294,1778396594000,-485.067318,0.00041691,120]
[421975293,1778396594000,-485.067318,0.00041691,120]
[421975304,1778396594000,-485.067318,0.00041691,120]
[421975320,1778396595000,-485.067318,0.00041691,120]
[421975327,1778396595000,-485.067318,0.00041691,120]
[421975325,1778396595000,-485.067318,0.00041691,120]
[421975323,1778396595000,-485.067318,0.00041691,120]
[421975324,1778396595000,-485.067318,0.00041691,120]
[421975322,1778396595000,-485.067318,0.00041691,120]
[421975321,1778396595000,-485.067318,0.00041691,120]
[421975326,1778396595000,-485.067318,0.00041691,120]
[421975319,1778396595000,-485.067318,0.00041691,120]
[421975317,1778396595000,-485.067318,0.00041691,120]
[421975316,1778396595000,-485.067318,0.00041691,120]
[421975315,1778396595000,-485.067318,0.00041691,120]
[421975313,1778396595000,-485.067318,0.00041691,120]
[421975312,1778396595000,-485.067318,0.00041691,120]
[421975318,1778396595000,-485.067318,0.00041691,120]
[421975328,1778396595000,-485.067318,0.00041691,120]
[421975314,1778396595000,-485.067318,0.00041691,120]
[421975331,1778396595000,-485.067318,0.00041691,120]
[421975345,1778396595000,-485.067318,0.00041691,120]
[421975344,1778396595000,-485.067318,0.00041691,120]
[421975341,1778396595000,-485.067318,0.00041691,120]
[421975343,1778396595000,-485.067318,0.00041691,120]
[421975340,1778396595000,-485.067318,0.00041691,120]
[421975342,1778396595000,-485.067318,0.00041691,120]
[421975339,1778396595000,-485.067318,0.00041691,120]
[421975330,1778396595000,-485.067318,0.00041691,120]
[421975337,1778396595000,-485.067318,0.00041691,120]
[421975336,1778396595000,-485.067318,0.00041691,120]
[421975334,1778396595000,-485.067318,0.00041691,120]
[421975333,1778396595000,-485.067318,0.00041691,120]
[421975332,1778396595000,-485.067318,0.00041691,120]
[421975335,1778396595000,-485.067318,0.00041691,120]
[421975329,1778396595000,-485.067318,0.00041691,120]
[421975338,1778396595000,-485.067318,0.00041691,120]
[421975360,1778396596000,-505.66,0.00041691,30]
[421975359,1778396596000,-100000.0,0.00041691,30]
[421975357,1778396596000,-500.0,0.00041691,120]
[421975356,1778396596000,-500.0,0.00041691,120]
[421975358,1778396596000,-646.41635919,0.00041691,120]
[421975355,1778396596000,-2049.72807293,0.00041691,120]
[421975354,1778396596000,-485.067318,0.00041691,120]
[421975350,1778396596000,-485.067318,0.00041691,120]
[421975351,1778396596000,-485.067318,0.00041691,120]
[421975352,1778396596000,-485.067318,0.00041691,120]
[421975348,1778396596000,-485.067318,0.00041691,120]
[421975349,1778396596000,-485.067318,0.00041691,120]
[421975346,1778396596000,-485.067318,0.00041691,120]
[421975347,1778396596000,-485.067318,0.00041691,120]
[421975361,1778396596000,-646.4,0.00041691,30]
[421975353,1778396596000,-485.067318,0.00041691,120]
[421975362,1778396596000,-350.42,0.00041691,30]
[421975367,1778396596000,-151.8,0.00041691,30]
[421975365,1778396596000,-151.81,0.00041691,30]
[421975380,1778396596000,-10000.0,0.00041691,120]
[421975377,1778396596000,-500.0,0.00041691,120]
[421975378,1778396596000,-639.76,0.00041691,30]
[421975376,1778396596000,-639.76,0.00041691,30]
[421975379,1778396596000,-3000.007872,0.00041691,120]
[421975373,1778396596000,-479.02,0.00041691,30]
[421975364,1778396596000,-152.1,0.00041691,30]
[421975374,1778396596000,-640.5,0.00041691,30]
[421975375,1778396596000,-639.76,0.00041691,30]
[421975370,1778396596000,-158.15,0.00041691,30]
[421975371,1778396596000,-639.76,0.00041691,30]
[421975368,1778396596000,-151.81,0.00041691,30]
[421975366,1778396596000,-500.0,0.00041691,120]
[421975369,1778396596000,-639.76,0.00041691,30]
[421975363,1778396596000,-479.02,0.00041691,30]
[421975372,1778396596000,-485.35,0.00041691,30]
[421975383,1778396597000,-10000.0,0.00041691,120]
[421975381,1778396597000,-10000.0,0.00041691,120]
[421975382,1778396597000,-10000.0,0.00041691,120]
[421975384,1778396597000,-10000.0,0.00041691,120]
[421975385,1778396597000,-333.15005324,0.00041691,120]
[421975392,1778396597000,2455.63639402,0.00041691,30]
[421975386,1778396597000,-655.17830084,0.00041691,120]
[421975389,1778396597000,-291.88022302,0.00041691,120]
[421975388,1778396597000,-500.0,0.00041691,120]
[421975390,1778396597000,3273.07461246,0.00041691,30]
[421975391,1778396597000,9099.05861796,0.00041691,30]
[421975387,1778396597000,-500.0,0.00041691,120]
[421975395,1778396598000,639.76,0.00041691,30]
[421975394,1778396598000,206.13,0.00041691,30]
[421975393,1778396598000,300.4,0.00041691,30]
[421975396,1778396600000,1092.0,0.00041691,30]
[421975397,1778396600000,828.0,0.00041691,30]
[421975401,1778396601000,1014.86719621,0.00041691,120]
[421975400,1778396601000,1014.86719621,0.00041691,120]
[421975399,1778396601000,1014.86719621,0.00041691,120]
[421975398,1778396601000,1014.86719621,0.00041691,120]
[421975404,1778396602000,1014.86719621,0.00041691,120]
[421975403,1778396602000,1014.86719621,0.00041691,120]
[421975402,1778396602000,1014.86719621,0.00041691,120]
[421975405,1778396603000,1014.86719621,0.00041691,120]
[421975407,1778396603000,500.0,0.00041691,120]
[421975406,1778396603000,1014.86719621,0.00041691,120]
[421975409,1778396603000,500.0,0.00041691,120]
[421975410,1778396603000,500.0,0.00041691,120]
[421975411,1778396603000,1014.86719621,0.00041691,120]
[421975408,1778396603000,1014.86719621,0.00041691,120]
[421975418,1778396604000,500.0,0.00041691,120]
[421975417,1778396604000,1014.8671962,0.00041691,120]
[421975416,1778396604000,500.0,0.00041691,120]
[421975415,1778396604000,1014.86719621,0.00041691,120]
[421975414,1778396604000,500.0,0.00041691,120]
[421975413,1778396604000,1014.86719621,0.00041691,120]
[421975412,1778396604000,500.0,0.00041691,120]
[421975419,1778396605000,500.0,0.00041691,120]
[421975420,1778396605000,500.0,0.00041691,120]
[421975422,1778396605000,597.0246281,0.00041691,120]
[421975421,1778396605000,500.0,0.00041691,120]
[421975423,1778396606000,8266.6427575,0.00041691,120]
[421975426,1778396631000,-1630.92,0.00025378,30]
[421975432,1778396631000,-165.19,0.00026575,30]
[421975425,1778396631000,-1630.92,0.00024946,30]
[421975427,1778396631000,-1630.92,0.00025811,30]
[421975429,1778396631000,-183.68,0.00026484,30]
[421975428,1778396631000,-1630.92,0.00026243,30]
[421975430,1778396631000,-185.83,0.00026484,30]
[421975431,1778396631000,-163.28,0.00026575,30]
[421975433,1778396631000,-1087.28,0.00026643,30]
[421975442,1778396631000,-1000.0,0.0003,120]
[421975435,1778396631000,-1087.28,0.00026643,30]
[421975434,1778396631000,-1087.28,0.00026643,30]
[421975444,1778396631000,-10000000.0,0.0003,30]
[421975440,1778396631000,-1630.92,0.00027108,30]
[421975441,1778396631000,-1587.111,0.00027397,40]
[421975443,1778396631000,-100000.0,0.0003,30]
[421975438,1778396631000,-1087.28,0.00026643,30]
[421975436,1778396631000,-1087.28,0.00026643,30]
[421975437,1778396631000,-1087.28,0.00026643,30]
[421975439,1778396631000,-1630.92,0.00026676,30]
[421975451,1778396632000,-2578.0,0.000303,30]
[421975448,1778396632000,-500.0,0.00030137,120]
[421975445,1778396632000,-321.25,0.00030082,120]
[421975447,1778396632000,-500.0,0.00030137,120]
[421975446,1778396632000,-198.0,0.000301,120]
[421975449,1778396632000,-500.0,0.00030137,120]
[421975452,1778396632000,-155.2650214,0.00030848,30]
[421975450,1778396632000,-714.23,0.00030137,120]
[421975454,1778396632000,-917.0,0.00030848,30]
[421975455,1778396632000,-378.0,0.00031848,30]
[421975456,1778396632000,-917.0,0.00031848,30]
[421975453,1778396632000,-378.0,0.00030848,30]
[421975457,1778396632000,-9244.6996664,0.00032,120]
[421975458,1778396632000,-154770.0,0.00032,120]
[421975459,1778396632000,-1000.0,0.00032,120]
[421975460,1778396632000,-208.10422263,0.00032,120]
[421975461,1778396632000,-2707126.16008957,0.00032,30]
[421975462,1778396648000,-161.84,0.00026575,30]
[421975476,1778396649000,-156.72,0.00034544,60]
[421975475,1778396649000,-321.25,0.00034521,120]
[421975477,1778396649000,-4030.47,0.00034544,60]
[421975474,1778396649000,-1000.0,0.00034,120]
[421975473,1778396649000,-1519.7,0.000339,120]
[421975472,1778396649000,-917.0,0.00033848,30]
[421975471,1778396649000,-378.0,0.00033848,30]
[421975465,1778396649000,-378.0,0.00032848,30]
[421975468,1778396649000,-3000.0,0.00033,30]
[421975467,1778396649000,-458.55,0.00032877,30]
[421975466,1778396649000,-917.0,0.00032848,30]
[421975464,1778396649000,-1519.7,0.00032,120]
[421975463,1778396649000,-2292873.83991043,0.00032,30]
[421975478,1778396649000,-370.02,0.00034544,60]
[421975470,1778396649000,-151.1890218,0.000336,120]
[421975480,1778396649000,-216.09,0.000347,120]
[421975469,1778396649000,-1519.7,0.00033,120]
[421975482,1778396649000,-917.0,0.00034848,30]
[421975481,1778396649000,-378.0,0.00034848,30]
[421975496,1778396649000,-176.28,0.000364,30]
[421975491,1778396649000,-1000.0,0.00036,120]
[421975493,1778396649000,-1250.659,0.00036125,44]
[421975492,1778396649000,-1519.7,0.00036,120]
[421975490,1778396649000,-917.0,0.00035848,30]
[421975488,1778396649000,-380.78428849,0.0003572,120]
[421975494,1778396649000,-151.0,0.00036153,30]
[421975495,1778396649000,-186.87,0.000362,30]
[421975487,1778396649000,-357.0,0.00035616,120]
[421975486,1778396649000,-700.0,0.00035616,120]
[421975483,1778396649000,-150.0,0.00035,120]
[421975484,1778396649000,-4994.81800765,0.00035,50]
[421975485,1778396649000,-1519.7,0.00035,120]
[421975479,1778396649000,-1086.86,0.00034544,60]
[421975489,1778396649000,-378.0,0.00035848,30]
[421975508,1778396650000,-10000.0,0.00038,120]
[421975509,1778396650000,-1000.0,0.00038,120]
[421975507,1778396650000,-5008.0099512,0.00038,120]
[421975505,1778396650000,-178.48191205,0.000379,120]
[421975506,1778396650000,-1653.0,0.00038,60]
[421975503,1778396650000,-2480.48628,0.000377,120]
[421975500,1778396650000,-2000.0,0.00037261,120]
[421975502,1778396650000,-5110.53219506,0.00037671,30]
[421975501,1778396650000,-150.0,0.000375,120]
[421975498,1778396650000,-917.0,0.00036848,30]
[421975499,1778396650000,-1519.7,0.000371,120]
[421975497,1778396650000,-378.0,0.00036848,30]
[421975504,1778396650000,-216.09,0.000378,60]
[421975510,1778396650000,-1667.88,0.00038,60]
[421975513,1778396650000,-151.0,0.00038125,30]
[421975512,1778396650000,-257.83413924,0.000381,33]
[421975511,1778396650000,-252.00000009,0.0003808,120]
[421975524,1778396650000,-1667.88,0.00039,75]
[421975523,1778396650000,-1266.45078513,0.00039,120]
[421975525,1778396650000,-152.26,0.00039017,120]
[421975520,1778396650000,-1200.0,0.0003863,30]
[421975521,1778396650000,-17698.3358,0.00038851,30]
[421975522,1778396650000,-7157.70278691,0.0003888,60]
[421975518,1778396650000,-186.87,0.000385,30]
[421975517,1778396650000,-473.8,0.00038329,120]
[421975515,1778396650000,-1798.54126364,0.00038329,120]
[421975516,1778396650000,-1798.54126364,0.00038329,120]
[421975514,1778396650000,-1519.7,0.000382,120]
[421975519,1778396650000,-2120.86,0.0003856,120]
[421975530,1778396651000,-163.44,0.00039243,120]
[421975537,1778396651000,-1519.7,0.000394,120]
[421975536,1778396651000,-151.66,0.0003935,120]
[421975534,1778396651000,-151.66,0.0003925,120]
[421975535,1778396651000,-152.26,0.00039317,120]
[421975529,1778396651000,-152.26,0.00039217,120]
[421975539,1778396651000,-152.3,0.00039417,120]
[421975532,1778396651000,-555.03,0.00039243,120]
[421975533,1778396651000,-1630.31,0.00039243,120]
[421975528,1778396651000,-151.66,0.0003915,120]
[421975527,1778396651000,-152.26,0.00039117,120]
[421975526,1778396651000,-151.66,0.0003905,120]
[421975531,1778396651000,-6045.7,0.00039243,120]
[421975538,1778396651000,-160.0,0.000394,61]
[421975542,1778396651000,-151.66,0.0003955,120]
[421975540,1778396651000,-151.66,0.0003945,120]
[421975541,1778396651000,-106586.63516387,0.000395,120]
[421975554,1778396651000,-270.704084,0.0003987,30]
[421975552,1778396651000,-151.66,0.0003985,120]
[421975550,1778396651000,-151.66,0.0003975,120]
[421975548,1778396651000,-186.87,0.000397,30]
[421975547,1778396651000,-173.26631691,0.0003969,30]
[421975551,1778396651000,-1353.6,0.000398,90]
[421975546,1778396651000,-151.66,0.0003965,120]
[421975543,1778396651000,-163.0,0.00039569,30]
[421975545,1778396651000,-435.698271,0.0003961,120]
[421975544,1778396651000,-4000.0,0.000396,100]
[421975553,1778396651000,-151.0,0.0003987,30]
[421975549,1778396651000,-435.69827098,0.00039742,120]
[421975562,1778396652000,-1600.0,0.00039909,60]
[421975566,1778396652000,-3830.38794155,0.00039999,120]
[421975568,1778396652000,-479.55358548,0.00039999,31]
[421975567,1778396652000,-413.89496999,0.00039999,31]
[421975564,1778396652000,-153.39,0.00039952,90]
[421975565,1778396652000,-246.95,0.00039952,90]
[421975563,1778396652000,-151.66,0.0003995,120]
[421975555,1778396652000,-435.69827098,0.00039874,120]
[421975561,1778396652000,-1600.0,0.00039909,30]
[421975560,1778396652000,-203.98,0.000399,90]
[421975558,1778396652000,-213.83619424,0.000399,120]
[421975556,1778396652000,-5369.12693,0.00039899,30]
[421975557,1778396652000,-176.28,0.000399,30]
[421975569,1778396652000,-500.0,0.00039999,31]
[421975559,1778396652000,-1130.58,0.000399,90]
[421975571,1778396652000,-500.0,0.00039999,31]
[421975570,1778396652000,-500.0,0.00039999,31]
[421975584,1778396652000,-292.66763655,0.00039999,31]
[421975572,1778396652000,-500.0,0.00039999,31]
[421975586,1778396652000,-374.84496211,0.00039999,31]
[421975587,1778396652000,-591.3022662,0.00039999,31]
[421975585,1778396652000,-500.0,0.00039999,31]
[421975583,1778396652000,-199.50569425,0.00039999,31]
[421975581,1778396652000,-500.0,0.00039999,31]
[421975582,1778396652000,-500.0,0.00039999,31]
[421975580,1778396652000,-500.0,0.00039999,31]
[421975578,1778396652000,-500.0,0.00039999,31]
[421975577,1778396652000,-500.0,0.00039999,31]
[421975576,1778396652000,-408.82730539,0.00039999,31]
[421975573,1778396652000,-438.68456441,0.00039999,31]
[421975575,1778396652000,-500.0,0.00039999,31]
[421975574,1778396652000,-500.0,0.00039999,31]
[421975579,1778396652000,-500.0,0.00039999,31]
[421975588,1778396652000,-591.3022662,0.00039999,31]
[421975603,1778396653000,-1859.78266191,0.0004,120]
[421975598,1778396653000,-798.25805939,0.00039999,31]
[421975602,1778396653000,-194.0,0.0004,120]
[421975601,1778396653000,-155.0,0.0004,120]
[421975599,1778396653000,-293.86141205,0.0004,120]
[421975600,1778396653000,-353.51,0.0004,120]
[421975597,1778396653000,-798.25805939,0.00039999,31]
[421975589,1778396653000,-591.3022662,0.00039999,31]
[421975594,1778396653000,-591.3022662,0.00039999,31]
[421975595,1778396653000,-591.3022662,0.00039999,31]
[421975593,1778396653000,-591.3022662,0.00039999,31]
[421975592,1778396653000,-591.3022662,0.00039999,31]
[421975591,1778396653000,-591.3022662,0.00039999,31]
[421975590,1778396653000,-591.3022662,0.00039999,31]
[421975596,1778396653000,-400.0,0.00039999,31]
[421975605,1778396653000,-3235.21466438,0.0004,30]
[421975620,1778396653000,-3000.0,0.0004,30]
[421975606,1778396653000,-4339.84330482,0.0004,30]
[421975604,1778396653000,-160.3085414,0.0004,120]
[421975621,1778396653000,-3000.0,0.0004,30]
[421975622,1778396653000,-3128.0,0.0004,30]
[421975619,1778396653000,-3000.0,0.0004,30]
[421975618,1778396653000,-23357.02484974,0.0004,120]
[421975617,1778396653000,-1000.0,0.0004,120]
[421975614,1778396653000,-804.64,0.0004,120]
[421975616,1778396653000,-7601.0,0.0004,120]
[421975613,1778396653000,-2926.0,0.0004,120]
[421975611,1778396653000,-3011.15993936,0.0004,120]
[421975612,1778396653000,-7586.0,0.0004,120]
[421975609,1778396653000,-2000.0,0.0004,60]
[421975610,1778396653000,-206911.93614469,0.0004,120]
[421975607,1778396653000,-155.79118996,0.0004,120]
[421975608,1778396653000,-164.91872754,0.0004,120]
[421975615,1778396653000,-150.0,0.0004,120]
[421975632,1778396654000,-755.05,0.0004,120]
[421975638,1778396654000,-151.66,0.0004005,120]
[421975637,1778396654000,-496.0,0.00040044,30]
[421975635,1778396654000,-427.06939354,0.0004,68]
[421975634,1778396654000,-198.14,0.0004,120]
[421975633,1778396654000,-398.36,0.0004,120]
[421975630,1778396654000,-361.75,0.0004,120]
[421975636,1778396654000,-435.69827098,0.00040006,120]
[421975628,1778396654000,-48102.0,0.0004,60]
[421975629,1778396654000,-201.54,0.0004,120]
[421975627,1778396654000,-100000.0,0.0004,90]
[421975625,1778396654000,-538.0,0.0004,30]
[421975626,1778396654000,-200000.0,0.0004,120]
[421975623,1778396654000,-1000.0,0.0004,30]
[421975624,1778396654000,-6509.83542033,0.0004,120]